Workbook

Sheet 2026 Fees
B2: Daradgee Environmental Education Centre 2026 Schedule of Fees
B3: Growth. Connection. Opportunity For All.
B4: Primary Schools (Prices Exclude GST)
B5: Camp Selection | C5: Activities | D5: Food | E5: Accommodation | F5: Total
B6: Day visit | C6: 15 | D6: 11.5 | E6: 0 | F6: =SUM(C6:E6) -> 26.5
B7: 3 day camp | C7: 45 | D7: 117.3 | E7: 30 | F7: =SUM(C7:E7) -> 192.3
B8: 4 day camp | C8: 55 | D8: 170.2 | E8: 45 | F8: =SUM(C8:E8) -> 270.2
B9: 5 day camp | C9: 65 | D9: 223.1 | E9: 60 | F9: =SUM(C9:E9) -> 348.1
B10: Additional Optional Charges
B11: Morning Tea First Day | D11: 6.33 | F11: =SUM(C11:E11) -> 6.33
B12: Afternoon Tea Last Day | D12: 6.33 | F12: =SUM(C12:E12) -> 6.33
B13: Camp Shirt | D13: 25 | F13: 25
B15: Secondary Students + Clubs & Associations (Prices Exclude GST).
B16: Camp Selection | C16: Activities | D16: Food | E16: Accommodation | F16: Total
B17: Day visit | C17: =C6 -> 15 | D17: 17.25 | E17: =E6 -> 0 | F17: =SUM(C17:E17) -> 32.25
B18: 3 day camp | C18: =C7 -> 45 | D18: 175.95 | E18: =E7 -> 30 | F18: =SUM(C18:E18) -> 250.95
B19: 4 day camp | C19: =C8 -> 55 | D19: 255.3 | E19: 45 | F19: =SUM(C19:E19) -> 355.3
B20: 5 day camp | C20: =C9 -> 65 | D20: 334.65 | E20: 60 | F20: =SUM(C20:E20) -> 459.65
B21: Additional Optional Charges
B22: Morning Tea First Day | D22: 9.5 | F22: =SUM(C22:E22) -> 9.5
B23: Afternoon Tea Last Day | D23: 9.5 | F23: =SUM(C23:E23) -> 9.5
B24: Camp Shirt | D24: 25 | F24: 25
B26: Terms and Conditions:
B27: * Multiple day camps include lunch on the first and last day. * Adults will need to pay for food only. * For groups less than 25 total (adults + students) there is a kitchen surcharge of 30%. * Food prices are based on adults and children assisting in the kitchen. If full catering is required a 50% surcharge will be applied. * Weekends and Public Holidays incur a 35% surcharge * Bus / Transport charges will be in addition to camp cost and will be charged directly to you based on price from third party provider. *GST is charged on the basis on what Daradgee EEC is required to charge. You are required to work out what GST you need to pass onto individuals attending camp. *Late cancellations with less than 8 weeks’ notice prior to camp incur a late cancellation fee calculated at 60% of accommodation and activity costs. *Final student and adult numbers must be confirmed via Book the Cook 2 weeks/10 working days prior to camp.

Sheet Calculator
B2: Daradgee Environmental Education Centre 2026 Camp Calculator
B3: Growth. Connection. Opportunity For All.
B4: Please select from drop down menus and insert dates and numbers where applicable in WHITE areas. These are used to calcuate the camp cost. | E4: School Name:
B6: Camp Selection | E6: Would Students like camp shirts?
E7: $25 per shirt
B8: Camp Arrival Date | E8: Is the camp on Weekend or Public Holiday?
B10: Number of Students | E10: Add Morning Tea - First Day
H11: =F10&F12&F14 -> 
B12: Number of Supervising Adults | E12: Add Afternoon Tea - Last Day | H12: YesYesYes | I12: ='2026 Fees'!D11+'2026 Fees'!D12-'2026 Fees'!D12 -> 6.33
B13: Supervising Adults Pay for food only | H13: YesYesNo | I13: ='2026 Fees'!D11+'2026 Fees'!D12 -> 12.66
B14: Group Type | E14: Remove Morning Tea - Last Day | H14: YesNoNo | I14: ='2026 Fees'!D11 -> 6.33
C15: =IF($C$10<=list!$I$3,list!$J$3,(IF($C$10<=list!$I$4,list!$J$4,(IF($C$10<=list!$I$5,list!$J$5,(IF($C$10<=list!$I$6,list!$J$6,(IF($C$10<=list!$I$7,list!$J$7,(IF($C$10<=list!$I$8,list!$J$8,("add to list")))))))))))) -> 1 | H15: NoYesYes | I15: 0
B16: Are you a State School? | E16: Camp attendees usually assit with serving and cleaning related duties for meals to reduce the cost of their camp (clearing & wiping of tables, dishwasher duty, general tidy-up). DEEC can provide staff to complete these tasks however a surcharge will apply. Please contact your camp facilitator if you would like a Full Catering option. | H16: NoNoYes | I16: -5.5
B17: GST is not applicable to state schools. GST does apply to other entities.
B18: Is the camp Curriculum related?
B19: Curriculum related excursions are GST free (apart from food related items) | H19: NoNoNo | I19: 0
B20: Full Catering Required (NO kitchen duties)? | C20: No | E20: Full Catering is a 50% surcharge that applies to food related camp fees if attendees would like DEEC staff to complete all serving and cleaning related duties for meals. Otherwise attendees perform kitchen/dining duties (clearing & wiping of tables, dishwasher duty, general tidy-up). Choose NO where your attendees will perform kitchen duties.
B22: Summary of Camp Costs | H22: NoYesNo | I22: 5.5
B24: Item | C24: Per Student | E24: Student Group Total (Excl GST) | F24: GST (If Applicable)
B25: =IF(ISBLANK(C6),"Camp Selection",C6) -> Camp Selection | C25: =IF(ISBLANK($C$14),0,(IF($C$14="Primary School",VLOOKUP($B$25,list!$B$14:$E$17,2,FALSE),VLOOKUP($B$25,list!$B$14:$D$17,3,FALSE)))) -> 0 | E25: =IFERROR(IF(ISBLANK($C$10),0,($C$10*C25)),0) -> 0 | F25: =IFERROR(IF($C$16="Yes",0,(IF($C$18="No",$E$25*10%,(IF($C$14="Primary School",$C$10*(VLOOKUP($C$6,list!$B$14:$P$17,14,FALSE)),$C$10*(VLOOKUP($C$6,list!$B$13:$P$17,15,FALSE))))))),0) -> 0
B26: Additional Morning Tea | C26: =IF(F10="Yes",(IF(ISBLANK($C$14),0,(IF($C$14="Primary School",VLOOKUP($B$25,list!$B$14:$K$17,10,FALSE),VLOOKUP($B$25,list!$B$14:$L$17,11,FALSE))))),0) -> 0 | E26: 0 | F26: =IF($C$16="Yes",0,(E26*10%)) -> 0
B27: Additional Afternoon Tea | C27: =IF(F12="Yes",(IF(ISBLANK($C$14),0,(IF($C$14="Primary School",VLOOKUP($B$25,list!$B$14:$K$17,10,FALSE),VLOOKUP($B$25,list!$B$14:$L$17,11,FALSE))))),0) -> 0 | E27: 0 | F27: =IF($C$16="Yes",0,(E27*10%)) -> 0
B28: Remove Morning Tea Last Day | C28: =IF(F14="Yes",(IF(ISBLANK($C$14),0,(IF($C$14="Primary School",-(VLOOKUP($B$25,list!$B$14:$K$17,10,FALSE)),-(VLOOKUP($B$25,list!$B$14:$L$17,11,FALSE)))))),0) -> 0 | E28: =IFERROR(IF(ISBLANK($C$10),0,($C$10*C28)),0) -> 0 | F28: 0
B29: Fully Catered loading | C29: =IF(ISBLANK(C20),0,(IF(C20="Yes",(IF(ISBLANK($C$14),"",(IF($C$14="Primary School",VLOOKUP($B$25,list!$B$14:$J$17,4,FALSE),VLOOKUP($B$25,list!$B$14:$J$17,5,FALSE))))),0))) -> 0 | E29: 0 | F29: 0
B30: < 25 People Kitchen loading | C30: =IF(ISBLANK($C$10),0,(IF(SUM($C$10,$C$12)<25,(IF(ISBLANK($C$14),0,(IF($C$14="Primary School",VLOOKUP($B$25,list!$B$14:$J$17,8,FALSE),VLOOKUP($B$25,list!$B$14:$J$17,9,FALSE))))),0))) -> 0 | E30: 0 | F30: 0
B31: Weekend loading | C31: =IF(ISBLANK($F$8),0,(IF($F$8="Yes",(SUM($C$25:$C$30*35%)),0))) -> 0 | E31: 0 | F31: =IF(ISBLANK($F$8),0,(IF($F$8="Yes",(SUM($F$25:$F$30*35%)),0))) -> 0
B32: Camp Shirt | C32: =IF($F$6="Yes",25,0) -> 0 | E32: 0 | F32: =IF($C$16="Yes",0,(IF($C$18="Yes",0,E32*10%))) -> 0
B33: Anomalies | C33: =IF(E33=0,,E33/C10) -> 0
B34: Total Student Costs | C34: =SUM(C25:C32) -> 0 | E34: =SUM(E25:E33) -> 0 | F34: =SUM(F25:F33) -> 0
B36: Item | C36: Per Adult | E36: Adult Group Total (Excl GST) | F36: GST (If Applicable)
B37: Supervising Adult Food Costs | C37: =IF(ISBLANK($C$14),0,(IF($C$14="Primary School",VLOOKUP($B$25,list!B25:D29,2,FALSE),VLOOKUP($B$25,list!B25:D29,3,FALSE)))) -> 0 | E37: =C37*C12 -> 0 | F37: =IF($C$16="No",(E37*10%),0) -> 0
B38: Adult Morning & Afternoon Tea Adjustment/s | C38: =IF(F12="Yes",(IF(ISBLANK($C$14),0,(IF($C$14="Primary School",VLOOKUP($B$25,list!$B$14:$K$17,10,FALSE),VLOOKUP($B$25,list!$B$14:$L$17,11,FALSE))))),0)+IF(F10="Yes",(IF(ISBLANK($C$14),0,(IF($C$14="Primary School",VLOOKUP($B$25,list!$B$14:$K$17,10,FALSE),VLOOKUP($B$25,list!$B$14:$L$17,11,FALSE))))),0)-IF(F14="Yes",(IF(ISBLANK($C$14),0,(IF($C$14="Primary School",VLOOKUP($B$25,list!$B$14:$K$17,10,FALSE),VLOOKUP($B$25,list!$B$14:$L$17,11,FALSE))))),0) -> 0 | E38: =C38*C12 -> 0 | F38: =IF($C$16="No",(E38*10%),0) -> 0
B39: Fully Catered loading | C39: =IF(ISBLANK(C20),0,(IF(C20="Yes",(IF(ISBLANK($C$14),"",(IF($C$14="Primary School",VLOOKUP($B$25,list!$B$14:$J$17,4,FALSE),VLOOKUP($B$25,list!$B$14:$J$17,5,FALSE))))),0))) -> 0 | E39: =IFERROR(IF(ISBLANK($C$12),0,($C$12*C39)),0) -> 0 | F39: =IF($C$16="No",(E39*10%),0) -> 0
B40: < 25 People Kitchen loading | C40: =IF(ISBLANK($C$10),0,(IF(SUM($C$10,$C$12)<25,(IF(ISBLANK($C$14),0,(IF($C$14="Primary School",VLOOKUP($B$25,list!$B$14:$J$17,8,FALSE),VLOOKUP($B$25,list!$B$14:$J$17,9,FALSE))))),0))) -> 0 | E40: =IFERROR(IF(ISBLANK($C$12),0,($C$12*C40)),0) -> 0 | F40: 0
B41: Weekend loading | C41: =IF(ISBLANK($F$8),0,(IF($F$8="Yes",(SUM($C$37:$C$40*35%)),0))) -> 0 | E41: =IFERROR(IF(ISBLANK($C$12),0,($C$12*C41)),0) -> 0 | F41: =IF($C$16="No",(E41*10%),0) -> 0
B42: Insert No. of Adult Camp Shirts Required | E42: =IFERROR(C42*25,0) -> 0 | F42: =IF($C$16="No",(E42*10%),0) -> 0
B43: Anomalies | C43: =IF(E43=0,,E43/C12) -> 0
B44: Total Adult Costs | C44: =SUM(C37:C41)+C43+(IF(C42>0,25,0)) -> 0 | E44: =SUM(E37:E43) -> 0 | F44: =SUM(F37:F43) -> 0
B46: Total Daradgee EEC Costs | E46: =E44+E34 -> 0 | F46: =F44+F34 -> 0
B48: Total Bus Transport on Camp Costs (Third Party Charge) | F48: =E48*10% -> 0
B49: Other External Visitation Costs (Insert As Appropriate) | F49: =E49*10% -> 0
B51: Total School Camp Cost | E51: =SUM(E46,E48,E49) -> 0 | F51: =SUM(F46,F48,F49) -> 0
B53: Notes (anomalies are included on an ex. GST basis):
B55: Terms and Conditions
B56: * Multiple day camps include lunch on the first and last day. * Adults will need to pay for food only. * For groups less than 25 total (adults + students) there is a kitchen surcharge of 30%. * Food prices are based on adults and children assisting in the kitchen. A 50% surcharge applies if full catering is required. Contact your camp facilitator to request this option. * Weekends and Public Holidays incur a 35% surcharge * Bus / Transport charges will be in addition to camp cost and will be charged directly to you based on price from third party provider. *GST is charged on the basis on what Daradgee EEC is required to charge. You are required to work out what GST you need to pass onto individuals attending camp. *Late cancellations with less than 8 weeks’ notice prior to camp incur a late cancellation fee calculated at 60% of accommodation and activity costs. *Final student and adult numbers must be confirmed via Book the Cook 2 weeks/10 working days prior to camp.

Sheet list (hidden)
B1: Group Type | C1: Loading
B2: Primary School | C2: BASE | D2: 1 | F2: Yes | H2: Min Group Size | I2: Max Group Size | J2: Number of FOC adults | L2: Acceptable Ratio of adults / kids | Q2: Start Date | R2: Finish Date | S2: Days between
B3: Secondary School | C3: 0.5 | D3: 2 | F3: No | H3: 0 | I3: 25 | J3: 1 | K3: =J3/I3 -> 0.04 | L3: =2/26 -> 0.07692307692 | Q3: 2025-01-01
B4: Club or Association | C4: 0.5 | D4: 2 | H4: 26 | I4: 50 | J4: 2 | K4: =J4/I4 -> 0.04 | L4: =3/51 -> 0.05882352941 | Q4: 2025-01-02
B5: Weekend camp | C5: 0.35 | D5: 3 | H5: 51 | I5: 75 | J5: 3 | K5: 0.04 | L5: =4/76 -> 0.05263157895 | Q5: 2025-01-03
B6: Fully Catered | C6: 0.5 | D6: 4 | H6: 76 | I6: 100 | J6: 4 | K6: 0.04 | L6: =5/101 -> 0.0495049505 | Q6: 2025-01-04
B7: State School | C7: Excl GST | H7: 101 | I7: 125 | J7: 5 | K7: 0.04 | L7: =6/126 -> 0.04761904762 | Q7: 2025-01-05
B8: Private School or Club or Association | C8: Incl GST | H8: 126 | I8: 150 | J8: 6 | K8: 0.04 | L8: =7/151 -> 0.04635761589 | Q8: 2025-01-06
Q9: 2025-01-07
B10: optional extras | Q10: 2025-01-08
B11: 1 | C11: 2 | D11: 3 | E11: 4 | F11: 5 | G11: 6 | H11: 7 | I11: 8 | J11: 9 | K11: 10 | L11: 11 | M11: 12 | N11: 13 | O11: 14 | P11: 15 | Q11: 2025-01-09
B12: Additional adult cost | Q12: 2025-01-10
C13: Primary School | D13: Secondary School | E13: Primary Fully catered | F13: secondary fully catered | G13: Primary Additional Adult | H13: Secondary Addititional Adult | I13: Primary <25 pax | J13: Secondary < 25 | K13: Primary Additional Morning / Afternoon Tea | L13: Secondary Additional Morning / Afternoon Tea | M13: GST | N13: Additional Adult Cost | O13: Primary Non State School Curriculum Related GST (Food Only) | P13: Clubs and Associations Non State School Curriculum Related GST (Food Only)
B14: Day visit | C14: ='2026 Fees'!F6 -> 26.5 | D14: ='2026 Fees'!F17 -> 32.25 | E14: =('2026 Fees'!$D6*50%) -> 5.75 | F14: =('2026 Fees'!$D17*50%) -> 8.625 | G14: =SUM('2026 Fees'!D6:E6) -> 11.5 | H14: =SUM('2026 Fees'!D17:E17) -> 17.25 | I14: =('2026 Fees'!$D6*30%) -> 3.45 | J14: =('2026 Fees'!$D17*30%) -> 5.175 | K14: ='2026 Fees'!$D$11 -> 6.33 | L14: ='2026 Fees'!$D$22 -> 9.5 | M14: Yes | N14: =('2026 Fees'!$D6) -> 11.5 | O14: ='2026 Fees'!D6*0.1 -> 1.15 | P14: ='2026 Fees'!D17*0.1 -> 1.725 | Q14: 2025-01-12
B15: 3 Day Camp | C15: ='2026 Fees'!F7 -> 192.3 | D15: ='2026 Fees'!F18 -> 250.95 | E15: =('2026 Fees'!$D7*50%) -> 58.65 | F15: =('2026 Fees'!$D18*50%) -> 87.975 | G15: =SUM('2026 Fees'!D7:E7) -> 147.3 | H15: =SUM('2026 Fees'!D18:E18) -> 205.95 | I15: =('2026 Fees'!$D7*30%) -> 35.19 | J15: =('2026 Fees'!$D18*30%) -> 52.785 | K15: ='2026 Fees'!$D$11 -> 6.33 | L15: ='2026 Fees'!$D$22 -> 9.5 | M15: No | N15: =('2026 Fees'!$D7) -> 117.3 | O15: ='2026 Fees'!D7*0.1 -> 11.73 | P15: ='2026 Fees'!D18*0.1 -> 17.595 | Q15: 2025-01-13
B16: 4 Day Camp | C16: ='2026 Fees'!F8 -> 270.2 | D16: ='2026 Fees'!F19 -> 355.3 | E16: =('2026 Fees'!$D8*50%) -> 85.1 | F16: =('2026 Fees'!$D19*50%) -> 127.65 | G16: =SUM('2026 Fees'!D8:E8) -> 215.2 | H16: =SUM('2026 Fees'!D19:E19) -> 300.3 | I16: =('2026 Fees'!$D8*30%) -> 51.06 | J16: =('2026 Fees'!$D19*30%) -> 76.59 | K16: ='2026 Fees'!$D$11 -> 6.33 | L16: ='2026 Fees'!$D$22 -> 9.5 | N16: =('2026 Fees'!$D8) -> 170.2 | O16: ='2026 Fees'!D8*0.1 -> 17.02 | P16: ='2026 Fees'!D19*0.1 -> 25.53 | Q16: 2025-01-14
B17: 5 Day Camp | C17: ='2026 Fees'!F9 -> 348.1 | D17: ='2026 Fees'!F20 -> 459.65 | E17: =('2026 Fees'!$D9*50%) -> 111.55 | F17: =('2026 Fees'!$D20*50%) -> 167.325 | G17: =SUM('2026 Fees'!D9:E9) -> 283.1 | H17: =SUM('2026 Fees'!D20:E20) -> 394.65 | I17: =('2026 Fees'!$D9*30%) -> 66.93 | J17: =('2026 Fees'!$D20*30%) -> 100.395 | K17: ='2026 Fees'!$D$11 -> 6.33 | L17: ='2026 Fees'!$D$22 -> 9.5 | N17: =('2026 Fees'!$D9) -> 223.1 | O17: ='2026 Fees'!D9*0.1 -> 22.31 | P17: ='2026 Fees'!D20*0.1 -> 33.465 | Q17: 2025-01-15
Q18: 2025-01-16
B19: 1 | C19: 2 | D19: 3 | E19: 4 | F19: 5 | G19: 6 | H19: 7 | I19: 8 | J19: 9 | K19: 10 | L19: 11 | M19: 12 | N19: 13 | O19: 14 | P19: 15 | Q19: 2025-01-17
Q20: 2025-01-18
B21: Note: If it changes back to a number of FOC adults per child then bbring formula back in from cell H30. | Q21: 2025-01-19
Q22: 2025-01-20
B24: Food related costs only
B25: Visit Type | C25: Primary School | D25: Secondary School
B26: Day visit | C26: ='2026 Fees'!D6 -> 11.5 | D26: ='2026 Fees'!D17 -> 17.25
B27: 3 Day Camp | C27: ='2026 Fees'!D7 -> 117.3 | D27: ='2026 Fees'!D18 -> 175.95
B28: 4 Day Camp | C28: ='2026 Fees'!D8 -> 170.2 | D28: ='2026 Fees'!D19 -> 255.3
B29: 5 Day Camp | C29: ='2026 Fees'!D9 -> 223.1 | D29: ='2026 Fees'!D20 -> 334.65
B32: 1 | C32: 2 | D32: 3

Sheet Catering Report (hidden)
A2: Catering Report 2026 | H2: Income
A3: School/ Group - | E3: Date - | H3: Adults | I3: Students | J3: Student food only charges (without any MT or AT adjustments)
A4: Group Numbers | B4: Adults - | C4: =Calculator!C12 -> 0 | D4: Child- | E4: =Calculator!C10 -> 0 | F4: Total Visitors | G4: =C4+E4 -> 0 | H4: =SUM(Calculator!E37:'Calculator'!F40) -> 0 | I4: =(J4*Calculator!C10)+SUM(Calculator!E26:'Calculator'!F30) -> 0 | J4: =IF(ISBLANK(Calculator!$C$14),0,(IF(Calculator!$C$14="Primary School",VLOOKUP(Calculator!B25,list!B26:D29,2,FALSE),VLOOKUP(Calculator!B25,list!B26:D29,3,FALSE)))) -> 0
A5: Supplies | I5: Total
A6: Bidfood | I6: =SUM(B6:F6) -> 0
A7: Vico | I7: =SUM(B7:F7) -> 0
A8: Bakery | I8: 0
A9: Butcher | I9: 0
A10: Coles | I10: 0
A11: Coles | I11: 0
A12: Woolworths | I12: 0
A13: Woolworths | I13: 0
A14: Bananas | I14: 0
I15: 0
I16: 0
A17: Total Spend | I17: =SUM(I6:I16) -> 0
A19: Staff Hours | C19: Rate | E19: Profit / Loss
A20: Monday | E20: Stock | F20: Staff | G20: Total | H20: Income | I20: Final
A21: Tuesday | E21: =I17 -> 0 | F21: =C25+C28 -> 0 | G21: =E21+F21 -> 0 | H21: =H4+I4 -> 0 | I21: =H21-G21 -> 0
A22: Wednesday
A23: Thursday
A24: Friday
A25: Totals | B25: =SUM(B20:B24) -> 0 | C25: =B25*39.1 -> 0
A26: Saturday
A27: Sunday
A28: Totals | B28: =SUM(B26:B27) -> 0 | C28: =B28*60 -> 0
A31: NOTE:
